Cogmind - Beta 16.1 @@@ ROGUE MODE // 2026.02.28 @ 22:35:59 Player: kim.jet.wav Result: Self-destructed Performance ------------- Evolutions (5) 2500 Regions Visited (5) 1000 Robots Destroyed (7) 35 Value Destroyed (121) 121 Prototype IDs (0) 0 Alien Tech Used (0) 0 Bonus (-13) -13 TOTAL SCORE: 3643 Bonus ------- Friendly Fire -13 Cogmind --------- Core Integrity 981/1000 Matter 300/300 Energy 100/100 System Corruption 0% Temperature Cool (0) Movement Core (250) Ox4 Location -5/Extension Parts ------- > --- POWER (4) -------- (None) > --- PROPULSION (4) --- (None) > --- UTILITY (5) ------ Medium Storage Unit Seismic Detector > --- WEAPON (4) ------- Medium Laser Medium Laser > --- INVENTORY (10) --- Small Laser Peak State ------------ > --- POWER ------------ Ion Engine > --- PROPULSION ------- Aluminum Leg Aluminum Leg > --- UTILITY ---------- Small Storage Unit Seismic Detector > --- WEAPON ----------- Medium Laser Medium Laser > --- INVENTORY -------- Small Laser [Rating: 7] Favorites ----------- Power Ion Engine Engine Ion Engine Propulsion Aluminum Leg Leg Aluminum Leg Utility Seismic Detector Device Seismic Detector Storage Medium Storage Unit Weapon Medium Laser Energy Gun Medium Laser Build | -11 -10 -10 -7 -5 -5 ------- Run | Yrd Mat Sub Rec Fac Ext Slots Evolved 10 | . . . . 10 . Power 3 | . . . . 3 . Propulsion 2 | . . . . 2 . Utility 3 | . . . . 3 . Weapon 2 | . . . . 2 . Parts Attached 8 | 7 1 . . . . Power 1 | 1 . . . . . Engine 1 | 1 . . . . . Core . | . . . . . . Reactor . | . . . . . . Propulsion 2 | 2 . . . . . Treads . | . . . . . . Leg 2 | 2 . . . . . Wheel . | . . . . . . Hover . | . . . . . . Flight . | . . . . . . Utility 3 | 2 1 . . . . Device 1 | 1 . . . . . Storage 2 | 1 1 . . . . Processor . | . . . . . . Hackware . | . . . . . . Protection . | . . . . . . Artifact . | . . . . . . Weapon 2 | 2 . . . . . Energy Gun 2 | 2 . . . . . Energy Cannon . | . . . . . . Ballistic Gun . | . . . . . . Ballistic Cannon . | . . . . . . Launcher . | . . . . . . Special Weapon . | . . . . . . Impact Weapon . | . . . . . . Slashing Weapon . | . . . . . . Piercing Weapon . | . . . . . . Special Melee Weapon . | . . . . . . Unidentified Prototypes . | . . . . . . Parts Lost 3 | . . . . . 3 Power 1 | . . . . . 1 Propulsion 2 | . . . . . 2 Utility . | . . . . . . Weapon . | . . . . . . Highest Loss Streak 3 | . . . . . 3 To Critical Strikes . | . . . . . . Average Backups 1 | 1 1 1 1 1 1 Power . | . . . . . . Propulsion . | . . . . . . Utility . | . . . . . . Weapon 1 | 1 1 1 1 1 1 Tool/Special . | . . . . . . Unused Backups 1 | . . . . . 1 Power . | . . . . . . Propulsion . | . . . . . . Utility . | . . . . . . Weapon 1 | . . . . . 1 Tool/Special . | . . . . . . Average Slot Usage (%) 80 | . 100 100 100 41 39 Engine 11 | . 14 14 14 5 5 Leg 22 | . 28 28 28 11 9 Device 11 | . 14 14 14 5 5 Storage 11 | . 14 14 14 5 5 Energy Gun 22 | . 28 28 28 11 11 Peak Build Rating 7 | 7 7 7 7 7 7 Average Rating 6 | 5 7 7 7 7 6 On Entrance 5 | . 7 7 7 7 7 Avg Prop Armor Cover (%) . | . . . . . . Naked Turns . | . . . . . . Heaviest Build 20 | 15 20 20 20 20 20 Greatest Support 20 | 20 20 20 20 20 20 Greatest Overweight (x) 1 | . . . . . 1 Average Overweight (x) . | . . . . . . Largest Inventory Capacity 10 | 8 10 10 10 10 10 Average Capacity 9 | 7 9 10 10 10 10 Most Carried 2 | 2 2 1 1 1 1 Average Carried 1 | 1 1 1 1 1 1 Final Capacity 10 | 8 10 10 10 10 10 Final Carried 1 | 1 1 1 1 1 1 Class Distribution -------------------- 100% | Mutant Dominant Class ---------------- Mutant | -10/Materials Mutant | -10/Subcaves Mutant | -7/Recycling Mutant | -5/Factory Mutant | -5/Extension Resources | -11 -10 -10 -7 -5 -5 ----------- Run | Yrd Mat Sub Rec Fac Ext Matter Collected 280 | 270 . 10 . . . Remotely . | . . . . . . Salvage Created 251 | 133 . 49 69 . . Parts 10 | 7 . 3 . . . Haulers Intercepted . | . . . . . . Recyclers Shooed . | . . . . . . Parts Field Recycled . | . . . . . . Retrieved Matter . | . . . . . . Parts Self-Destructed 6 | . . 6 . . . Prevented . | . . . . . . Parts Restored . | . . . . . . Kills | -11 -10 -10 -7 -5 -5 ------- Run | Yrd Mat Sub Rec Fac Ext Combat Hostiles Destroyed 2 | . . 1 1 . . Guns 1 | . . 1 . . . Classes Destroyed 5 | 2 . 2 1 . . Tunneler 3 | 3 . . . . . Recycler 1 | 1 . . . . . Turret 1 | . . 1 . . . Swarmer 1 | . . 1 . . . Sentry 1 | . . . 1 . . Best Kill Streak 4 | 4 . 1 1 . . Combat Bots Only 1 | . . 1 1 . . Max Kills in Single Turn 2 | 2 . 1 1 . . Gunslinging . | . . . . . . Exploded . | . . . . . . Melee . | . . . . . . Uniques/NPCs Destroyed . | . . . . . . Combat | -11 -10 -10 -7 -5 -5 -------- Run | Yrd Mat Sub Rec Fac Ext Hostile Shots Fired 110 | . . 13 87 . 10 Missed 52 | . . 7 42 . 3 Hits 58 | . . 6 45 . 7 Projectile 58 | . . 6 45 . 7 Damage Taken 530 | . . 56 309 . 165 Core 110 | . . 26 65 . 19 Absorbed by Shields . | . . . . . . Core Remaining (%) 81 | 100 . . 63 . . Volleys Fired 22 | 8 . 6 8 . . Largest 2 | 2 . 2 2 . . Hottest 100 | 100 . 100 100 . . Shots Fired 44 | 16 . 12 16 . . Gun 44 | 16 . 12 16 . . Cannon . | . . . . . . Launcher . | . . . . . . Special . | . . . . . . Kinetic . | . . . . . . Thermal 44 | 16 . 12 16 . . Explosive . | . . . . . . Electromagnetic . | . . . . . . Robot Hit Streak 7 | 4 . 3 7 . . Robot Miss Streak 6 | 6 . 3 2 . . Penetration Max . | . . . . . . Secondary Targets 1 | . . 1 . . . Max Gunslinging Chain 1 | . . 1 . . . Shots Hit Robots 25 | 7 . 7 11 . . Core Hits 11 | 5 . 3 3 . . Critical Kills . | . . . . . . Critical Parts Destroyed . | . . . . . . Critical Strikes 3 | . . 2 1 . . Burn 3 | . . 2 1 . . Melee Attacks . | . . . . . . Impact . | . . . . . . Slashing . | . . . . . . Piercing . | . . . . . . Sneak Attacks . | . . . . . . Combat Hostiles . | . . . . . . Follow-up Attacks . | . . . . . . Damage Inflicted 376 | 126 . 98 152 . . Guns 363 | 126 . 98 139 . . Cannons . | . . . . . . Explosions . | . . . . . . Melee . | . . . . . . Ramming 13 | . . . 13 . . Kinetic . | . . . . . . Thermal 363 | 126 . 98 139 . . Explosive . | . . . . . . Electromagnetic . | . . . . . . Impact . | . . . . . . Slashing . | . . . . . . Piercing . | . . . . . . Highest Corruption . | . . . . . . Average Corruption . | . . . . . . Corruption Purged . | . . . . . . Corruption Blocked . | . . . . . . Overload Shots . | . . . . . . Overflow Damage . | . . . . . . Projectiles . | . . . . . . Explosions . | . . . . . . Melee . | . . . . . . Knockbacks . | . . . . . . Impact . | . . . . . . Kinetic . | . . . . . . Secondary . | . . . . . . Self-Inflicted Damage . | . . . . . . Shots . | . . . . . . Rammed . | . . . . . . Targets Rammed 2 | . . . 2 . . Kicked 2 | . . . 2 . . Crushed . | . . . . . . Highest Temperature 372 | 234 . 5 372 . . Average Temperature 144 | 100 . 5 192 . . Received Heat Transfer 135 | . . 36 72 . 27 Siege Activations . | . . . . . . Martial Activations . | . . . . . . Shielding Activations . | . . . . . . Robots Disrupted . | . . . . . . Combat Hostiles . | . . . . . . Robots Corrupted . | . . . . . . Combat Hostiles . | . . . . . . Parts Fried . | . . . . . . Impact Corruptions . | . . . . . . Robots Melted 1 | . . . 1 . . Combat Hostiles 1 | . . . 1 . . Parts Melted 3 | 1 . . 2 . . Heat Transferred 1295 | 370 . 444 481 . . Parts Sabotaged . | . . . . . . Parts Stolen . | . . . . . . Parts Stripped . | . . . . . . Power Chain Reactions . | . . . . . . Alert | -11 -10 -10 -7 -5 -5 ------- Run | Yrd Mat Sub Rec Fac Ext Maximum Alert Level . | . . . . . . Low Security (%) 100 | 100 100 . 100 100 100 Level 1 . | . . . . . . Level 2 . | . . . . . . Level 3 . | . . . . . . Level 4 . | . . . . . . Level 5 . | . . . . . . High Security . | . . . . . . Max Security . | . . . . . . Peak Influence 48 | 15 3 . 48 . . Initial 38 | . 3 . 38 . . Average 7 | 4 1 . 13 . . Influence Increases 170 | 20 . 100 50 . . Destroy 0b10 Robot/C 60 | . . 40 20 . . Destroy 0b10 Robot/NC 20 | 20 . . . . . Lose Combat Pursuer 90 | . . 60 30 . . Influence Decreases 170 | 15 5 20 130 . . Entered New Map 44 | . 2 . 42 . . Time Decay 126 | 15 3 20 88 . . Squads Dispatched 1 | . . . . . 1 Investigation 1 | . . . . . 1 Extermination . | . . . . . . Reinforcement . | . . . . . . Assault . | . . . . . . Garrison . | . . . . . . Intercept . | . . . . . . Searches Triggered . | . . . . . . Construction Impeded . | . . . . . . Haulers Reinforced . | . . . . . . Active Scanning Responses . | . . . . . . Cargo Convoy Interrupts . | . . . . . . Stealth | -11 -10 -10 -7 -5 -5 --------- Run | Yrd Mat Sub Rec Fac Ext Distress Signals . | . . . . . . Communications Jammed . | . . . . . . Distress Signals . | . . . . . . Times Spotted 9 | . . 4 3 . 2 Peak Tracking Total 3 | . . 3 2 . 2 Tactical Retreats 2 | . . 1 1 . . Traps | -11 -10 -10 -7 -5 -5 ------- Run | Yrd Mat Sub Rec Fac Ext Traps Triggered . | . . . . . . Indirectly . | . . . . . . Trap Hack Attempts . | . . . . . . Triggered . | . . . . . . Disarmed . | . . . . . . Reprogrammed . | . . . . . . Reused . | . . . . . . Traps Extracted . | . . . . . . Installed . | . . . . . . Triggered . | . . . . . . Machines | -11 -10 -10 -7 -5 -5 ---------- Run | Yrd Mat Sub Rec Fac Ext Machines Disabled . | . . . . . . Max in Single Turn . | . . . . . . Machines Repaired . | . . . . . . Machines Dismantled . | . . . . . . Machines Sabotaged . | . . . . . . Overloaded Fab Kills . | . . . . . . Hacking | -11 -10 -10 -7 -5 -5 --------- Run | Yrd Mat Sub Rec Fac Ext Machines Accessed 1 | . . . . . 1 Terminals 1 | . . . . . 1 Fabricators . | . . . . . . Repair Stations . | . . . . . . Recycling Units . | . . . . . . Scanalyzers . | . . . . . . Garrison Access . | . . . . . . Total Hacks 2 | . . . . . 2 Successful . | . . . . . . Failed 2 | . . . . . 2 Catastrophic 1 | . . . . . 1 Database Lockouts . | . . . . . . Manual . | . . . . . . Terminals 2 | . . . . . 2 Fabricators . | . . . . . . Repair Stations . | . . . . . . Recycling Units . | . . . . . . Scanalyzers . | . . . . . . Garrison Access . | . . . . . . Terminal Hacks . | . . . . . . Fabricator Hacks . | . . . . . . Repair Station Hacks . | . . . . . . Recycling Unit Hacks . | . . . . . . Scanalyzer . | . . . . . . Garrison Access Hacks . | . . . . . . Unauthorized Hacks . | . . . . . . Terminals . | . . . . . . Fabricators . | . . . . . . Repair Stations . | . . . . . . Recycling Units . | . . . . . . Scanalyzers . | . . . . . . Garrison Access . | . . . . . . Data Cores Recovered . | . . . . . . Used . | . . . . . . Hacking Detections 1 | . . . . . 1 Full Trace Events 1 | . . . . . 1 Feedback Events . | . . . . . . Feedback Blocked . | . . . . . . Robot Schematics Acquired . | . . . . . . Robots Built . | . . . . . . Authchips . | . . . . . . Time . | . . . . . . Total Robot Build Rating . | . . . . . . Part Schematics Acquired . | . . . . . . Parts Built . | . . . . . . Authchips . | . . . . . . Time . | . . . . . . Total Part Build Rating . | . . . . . . Part Studies Acquired . | . . . . . . Parts Repaired . | . . . . . . Time . | . . . . . . Parts Recycled . | . . . . . . Recycled Matter . | . . . . . . Retrieved Matter . | . . . . . . Retrieved Components . | . . . . . . Parts Scanalyzed . | . . . . . . Part Schematics Acquired . | . . . . . . Parts Damaged . | . . . . . . Bothacking | -11 -10 -10 -7 -5 -5 ------------ Run | Yrd Mat Sub Rec Fac Ext Used RIF Installer . | . . . . . . Robots Hacked . | . . . . . . Non-combat . | . . . . . . Combat . | . . . . . . Robot Hacks Applied . | . . . . . . Relay Couplers Released . | . . . . . . Fabnet Peak Effective % . | . . . . . . Robots Rewired . | . . . . . . Allies Hacked . | . . . . . . Hacks Repelled . | . . . . . . Allies | -11 -10 -10 -7 -5 -5 -------- Run | Yrd Mat Sub Rec Fac Ext Total Allies . | . . . . . . Largest Group . | . . . . . . Highest-Rated Group . | . . . . . . Highest-Rated Ally . | . . . . . . Total Orders . | . . . . . . Ally Attacks . | . . . . . . Total Damage . | . . . . . . Kills . | . . . . . . Allies Corrupted . | . . . . . . Allies Melted . | . . . . . . Intel | -11 -10 -10 -7 -5 -5 ------- Run | Yrd Mat Sub Rec Fac Ext Active Infowar (turns) 609 | . 43 42 324 120 80 Seismic 609 | . 43 42 324 120 80 Robot Analysis Total . | . . . . . . Derelict Logs Recovered . | . . . . . . Drone Launches . | . . . . . . Drone Recoveries . | . . . . . . Exploration | -11 -10 -10 -7 -5 -5 ------------- Run | Yrd Mat Sub Rec Fac Ext Turns Passed 700 | 87 47 42 324 120 80 Spaces Moved 507 | 46 36 18 243 101 63 Core 6 | 6 . . . . . Treads . | . . . . . . Legs 501 | 40 36 18 243 101 63 Wheels . | . . . . . . Hover . | . . . . . . Flight . | . . . . . . Fastest Speed 50 | 50 120 120 120 120 120 Average Speed 120 | 110 120 120 120 120 126 Slowest Speed 190 | 120 120 120 120 120 190 Overloaded Moves . | . . . . . . Propulsion Burnouts . | . . . . . . Robots Hopped . | . . . . . . Potential Cave-ins . | . . . . . . Cave-ins Triggered . | . . . . . . Exploration Rate (%) 14 | 3 9 2 57 3 12 Regions Visited 5 Branch Regions 3 Pre-discovered Areas 1 | . . 1 . . . Known Exits Taken . | . . . . . . Unknown Exits Taken 5 | 1 1 1 1 1 . Scrap Searched . | . . . . . . Spaces Dug . | . . . . . . Terrain Destroyed . | . . . . . . Melee . | . . . . . . Projectile . | . . . . . . AOE . | . . . . . . Terrain Rammed . | . . . . . . Walls Destroyed . | . . . . . . Machines Disabled . | . . . . . . Actions | -11 -10 -10 -7 -5 -5 --------- Run | Yrd Mat Sub Rec Fac Ext Total 551 | 63 40 26 259 100 63 Wait 14 | 1 3 3 7 . . Move 502 | 45 35 17 242 100 63 Hop . | . . . . . . Pick Up 2 | 2 . . . . . Fast Attach 6 | 6 . . . . . Attach 1 | 1 . . . . . Detach . | . . . . . . Swap 1 | . 1 . . . . Drop 1 | . 1 . . . . Fire 22 | 8 . 6 8 . . Melee . | . . . . . . Ram . | . . . . . . Kick 2 | . . . 2 . . Crush . | . . . . . . Escape Stasis . | . . . . . . Rewire . | . . . . . . Trap . | . . . . . . Miscellaneous . | . . . . . . Route ------- -11/Scrapyard -10/Materials -10/Subcaves -7/Recycling -5/Factory -5/Extension History --------- Turn | Location | Event 8 | -11/Scrapyard | Discovered new exit (range 15) 88 | -11/Scrapyard | Entered Materials 89 | -10/Materials | Met a group of wandering Federalists 133 | -10/Materials | Discovered new exit (range 3) 135 | -10/Materials | Entered Subcaves 136 | -10/Subcaves | Continued accompanying wandering Federalists (5) 136 | -10/Subcaves | Approached by a straggling Scientist 137 | -10/Subcaves | Learned location of Zion (-7) 137 | -10/Subcaves | Met a Zionite searching for "candidates" 142 | -10/Subcaves | Shifting Twisted Machinery released Mak. Light Armor Plating 142 | -10/Subcaves | Discovered new exit (range 11) 177 | -10/Subcaves | Entered Recycling 206 | -7/Recycling | Lost 3 allies 304 | -7/Recycling | Build established: Mutant 483 | -7/Recycling | Discovered new exit (range 16) 501 | -7/Recycling | Entered Factory 501 | -5/Factory | Evolved 10 slots: Power x3, Propulsion x2, Utility x3, Weapon x2 601 | -5/Factory | Discovered new exit (range 15) 621 | -5/Factory | Entered Extension 701 | -5/Extension | Self-destructed Last Messages --------------- 00601_ EXIT=FOUND 00615_ Connecting with Door Terminal... 00615_ Current location identified: Factory LOCATION=UNKNOWN GOAL=ESCAPE 00633_ U-05 Engineer exits Transfer Station. 00633_ R-10 Processor exits Transfer Station. 00644_ U-05 Engineer exits Transfer Station. 00644_ T-07 Excavator exits Transfer Station. 00679_ Penetrated by Slug. 00681_ Connecting with Door Terminal... 00681_ Current location identified: Extension 00681_ ALERT: Suspicious activity at Terminal E005. Dispatching Investigation squad. 00686_ Penetrated by Slug. 00689_ Aluminum Leg destroyed. 00689_ Slug penetrates Wall. 00700_ Aluminum Leg destroyed. 00700_ Penetrated by Slug. 00700_ Ion Engine destroyed. Map ----- +----------------------------------------------------+ | | | | | | | | | | | | | | | | | | | | | | | | | | | | | | | | | | | | | ?????????????????????????????????????????????????? | | ?????????????????????????????????????????????????? | | ???????????###########???????????????????????????? | | ???????????# [ !#???????????????????????????? | | ??######???# ! * ###########?????????????????? | | ??# ^#???# + #?????????????????? | | ??# #???# ! ]# #?????????????????? | | ??# ########### ### @ #?????????????????? | | ??# Y Y ???????????? | | ??# ##### ######### #?????????? | | ??# #???# #???????????? ??????????? | | ??# #???# #???????????????????????? | | ??# #######/######??? ???????????????????????? | | ??## ##????# T#??????? ???????????????????????? | | ???# #?????##"##??????# #??????????????????????? | | ???# #????????????????#####??????????????????????? | | ???# #???????????????????????????????????????????? | | ???# #???????????????????????????????????????????? | | ???# #???????????????????????????????????????????? | | ???# #???????????????????????????????????????????? | | ???# #???????????????????????????????????????????? | | ???# #???????????????????????????????????????????? | | ???# #???????????????????????????????????????????? | | ???# #???????????????????????????????????????????? | | ???# #???????????????????????????????????????????? | | ???# #???????????????????????????????????????????? | | ???# #???????????????????????????????????????????? | | ???# #???????????????????????????????????????????? | | ???# #???????????????????????????????????????????? | | ???# #???????????????????????????????????????????? | | ???# #???????????????????????????????????????????? | | ???# #???????????????????????????????????????????? | +----------------------------------------------------+ Best States ------------- Heat Dissipation 40 Energy Generation 10 Energy Capacity 250 Matter Stores 300 Matter Capacity 300 Sight Range 16 Terrain Scan Density 10 Evasion (%) 55 Item Schematics ----------------- None Robot Schematics ------------------ None Fabricated ------------ Nothing Repaired ---------- Nothing Studied --------- None Alien Tech Used ----------------- None Achievements -------------- None Challenges ------------ None Game ------ Seed DecoderInertialCasing Manual? 0 Play Time 00:35:50 Cumulative 53.3 hours Start 2026.02.28 @ 21:06:24 End 2026.02.28 @ 22:35:59 Sessions 1 Manual Loads 0 Difficulty Rogue Special Mode None Game No. 226 Rogue 226 Adventurer 0 Explorer 0 Win Type - Total 0 Types 0/0/0/0/0/0/0/0/0/0 Lore% 27 Gallery% 21 Achievement% 16 Wizard Run 0 Options --------- Layout 0 ASCII 1 Keyboard 1 Movement Numpad Keybinds 1 Fullscreen 1 Font 18/X11 Map View 76x50 Zoom Use 0% Tactical HUD 1 Map Filters NONE Filters NONE Steam 1 RUN: efdec025-7037-4936-9677-7733aa1d6633